[Event "Titled Tuesday Blitz April 25 Early 2023"]
[White "Kamsky, Gata"]
[Black "Moussard, Jules"]
[WhiteFideId "2000024"]
[BlackFideId "642908"]
[WhiteElo "2660"]
[BlackElo "2610"]
[Result "1-0"]
[Round "11"]
[TimeControl "180+2"]
[Date "2023.04.25"]
[WhiteClock "0:00:26"]
[BlackClock "0:00:05"]

1. d4 {[%clk 0:03:00]}  Nf6 {[%clk 0:03:00]} 2. Nf3 {[%clk 0:02:58]}  b6 {[%clk 0:02:59]} 3. Bf4 {[%clk 0:02:56]}  Bb7 {[%clk 0:02:59]} 4. e3 {[%clk 0:02:56]}  g6 {[%clk 0:02:57]} 5. a4 {[%clk 0:02:54]}  a5 {[%clk 0:02:54]} 6. h3 {[%clk 0:02:52]}  Bg7 {[%clk 0:02:54]} 7. c3 {[%clk 0:02:52]}  O-O {[%clk 0:02:54]} 8. Nbd2 {[%clk 0:02:53]}  d6 {[%clk 0:02:54]} 9. Bb5 {[%clk 0:02:52]}  Nbd7 {[%clk 0:02:53]} 10. O-O {[%clk 0:02:52]}  e6 {[%clk 0:02:43]} 11. Re1 {[%clk 0:02:51]}  Qe7 {[%clk 0:02:40]} 12. e4 {[%clk 0:02:51]}  e5 {[%clk 0:02:39]} 13. Bh2 {[%clk 0:02:46]}  Rad8 {[%clk 0:02:27]} 14. Qc2 {[%clk 0:02:46]}  Nh5 {[%clk 0:02:26]} 15. b4 {[%clk 0:02:37]}  c6 {[%clk 0:02:16]} 16. Bf1 {[%clk 0:02:30]}  axb4 {[%clk 0:02:12]} 17. cxb4 {[%clk 0:02:16]}  exd4 {[%clk 0:02:10]} 18. a5 {[%clk 0:01:56]}  bxa5 {[%clk 0:02:06]} 19. Rxa5 {[%clk 0:01:53]}  Ne5 {[%clk 0:01:35]} 20. Nxd4 {[%clk 0:01:50]}  d5 {[%clk 0:01:28]} 21. exd5 {[%clk 0:01:47]}  cxd5 {[%clk 0:01:01]} 22. g4 {[%clk 0:01:41]}  Rc8 {[%clk 0:00:48]} 23. Qb1 {[%clk 0:01:39]}  Qg5 {[%clk 0:00:43]} 24. N2f3 {[%clk 0:01:32]}  Nxf3+ {[%clk 0:00:43]} 25. Nxf3 {[%clk 0:01:33]}  Qf6 {[%clk 0:00:42]} 26. Ne5 {[%clk 0:01:32]}  Rfe8 {[%clk 0:00:13]} 27. Ra7 {[%clk 0:00:58]}  Qb6 {[%clk 0:00:09]} 28. Rxb7 {[%clk 0:00:56]}  Qxb7 {[%clk 0:00:10]} 29. gxh5 {[%clk 0:00:56]}  d4 {[%clk 0:00:09]} 30. hxg6 {[%clk 0:00:51]}  hxg6 {[%clk 0:00:09]} 31. b5 {[%clk 0:00:47]}  Rc5 {[%clk 0:00:09]} 32. Nc6 {[%clk 0:00:40]}  Rxe1 {[%clk 0:00:07]} 33. Qxe1 {[%clk 0:00:39]}  Bf6 {[%clk 0:00:06]} 34. Bg3 {[%clk 0:00:37]}  Qd7 {[%clk 0:00:06]} 35. Qe4 {[%clk 0:00:34]}  d3 {[%clk 0:00:05]} 36. Qxd3 {[%clk 0:00:32]}  Rd5 {[%clk 0:00:05]} 37. Qe4 {[%clk 0:00:29]}  Rd1 {[%clk 0:00:06]} 38. Kg2 {[%clk 0:00:29]}  Qd2 {[%clk 0:00:04]} 39. b6 {[%clk 0:00:27]}  Qc1 {[%clk 0:00:04]} 40. Qc4 {[%clk 0:00:27]}  Rxf1 {[%clk 0:00:04]} 41. Qxc1 {[%clk 0:00:25]}  Rxc1 {[%clk 0:00:05]} 42. b7 {[%clk 0:00:26]} 1-0


[Site "https://www.chess.com"]

[Event "Titled Tuesday Blitz April 25 Early 2023"]
[White "Svane, Frederik"]
[Black "Galchenko, Matvey"]
[WhiteFideId "12923044"]
[BlackFideId "24175480"]
[WhiteElo "2502"]
[BlackElo "2423"]
[Result "1-0"]
[Round "11"]
[TimeControl "180+2"]
[Date "2023.04.25"]
[WhiteClock "0:00:04"]
[BlackClock "0:00:03"]

1. g3 {[%clk 0:03:00]}  c5 {[%clk 0:02:58]} 2. Bg2 {[%clk 0:02:59]}  g6 {[%clk 0:02:59]} 3. e4 {[%clk 0:02:59]}  Bg7 {[%clk 0:02:59]} 4. Ne2 {[%clk 0:02:59]}  Nc6 {[%clk 0:02:59]} 5. O-O {[%clk 0:03:00]}  e6 {[%clk 0:02:59]} 6. c3 {[%clk 0:02:59]}  Nge7 {[%clk 0:02:56]} 7. d4 {[%clk 0:02:59]}  cxd4 {[%clk 0:02:54]} 8. cxd4 {[%clk 0:02:56]}  d5 {[%clk 0:02:54]} 9. exd5 {[%clk 0:02:56]}  Nxd5 {[%clk 0:02:53]} 10. Nbc3 {[%clk 0:02:56]}  O-O {[%clk 0:02:53]} 11. Qb3 {[%clk 0:02:49]}  Na5 {[%clk 0:02:34]} 12. Qc2 {[%clk 0:02:35]}  Re8 {[%clk 0:02:28]} 13. Rd1 {[%clk 0:02:32]}  Bd7 {[%clk 0:02:23]} 14. Nf4 {[%clk 0:02:26]}  Nxc3 {[%clk 0:02:14]} 15. bxc3 {[%clk 0:02:20]}  Rc8 {[%clk 0:02:14]} 16. Rb1 {[%clk 0:02:02]}  b6 {[%clk 0:02:11]} 17. Qd3 {[%clk 0:01:42]}  Qc7 {[%clk 0:02:04]} 18. Bd2 {[%clk 0:01:37]}  Nc4 {[%clk 0:02:01]} 19. Be1 {[%clk 0:01:37]}  Ba4 {[%clk 0:01:47]} 20. Rdc1 {[%clk 0:01:36]}  Red8 {[%clk 0:01:42]} 21. Qe2 {[%clk 0:01:35]}  Qd6 {[%clk 0:01:19]} 22. Rb4 {[%clk 0:01:25]}  b5 {[%clk 0:01:10]} 23. Nd3 {[%clk 0:01:23]}  a5 {[%clk 0:01:08]} 24. Rbb1 {[%clk 0:01:20]}  Na3 {[%clk 0:00:58]} 25. Ra1 {[%clk 0:01:18]}  Nc4 {[%clk 0:00:36]} 26. Nc5 {[%clk 0:01:16]}  Rxc5 {[%clk 0:00:36]} 27. dxc5 {[%clk 0:01:17]}  Qxc5 {[%clk 0:00:37]} 28. Kh1 {[%clk 0:00:55]}  h5 {[%clk 0:00:37]} 29. f4 {[%clk 0:00:55]}  Qa3 {[%clk 0:00:29]} 30. Be4 {[%clk 0:00:48]}  h4 {[%clk 0:00:21]} 31. gxh4 {[%clk 0:00:44]}  Qd6 {[%clk 0:00:21]} 32. Bg3 {[%clk 0:00:42]}  Qc5 {[%clk 0:00:21]} 33. Bf2 {[%clk 0:00:38]}  Qc7 {[%clk 0:00:15]} 34. h5 {[%clk 0:00:32]}  Qxf4 {[%clk 0:00:11]} 35. hxg6 {[%clk 0:00:16]}  f5 {[%clk 0:00:12]} 36. Bg2 {[%clk 0:00:11]}  e5 {[%clk 0:00:09]} 37. Bg3 {[%clk 0:00:10]}  Qg5 {[%clk 0:00:09]} 38. Qf2 {[%clk 0:00:04]}  Rf8 {[%clk 0:00:06]} 39. Re1 {[%clk 0:00:03]}  f4 {[%clk 0:00:06]} 40. Bh4 {[%clk 0:00:04]}  Qh5 {[%clk 0:00:06]} 41. Bd5+ {[%clk 0:00:03]}  Kh8 {[%clk 0:00:06]} 42. Be4 {[%clk 0:00:04]}  Ne3 {[%clk 0:00:05]} 43. Be7 {[%clk 0:00:03]}  Re8 {[%clk 0:00:05]} 44. Bc5 {[%clk 0:00:03]}  Ng4 {[%clk 0:00:04]} 45. Qe2 {[%clk 0:00:04]}  b4 {[%clk 0:00:05]} 46. Bf3 {[%clk 0:00:04]}  Qh4 {[%clk 0:00:04]} 47. Bxg4 {[%clk 0:00:04]}  Bc6+ {[%clk 0:00:04]} 48. Kg1 {[%clk 0:00:05]}  e4 {[%clk 0:00:04]} 49. Bd4 {[%clk 0:00:05]}  f3 {[%clk 0:00:03]} 50. Bxf3 {[%clk 0:00:04]}  Qg5+ {[%clk 0:00:02]} 51. Bg2 {[%clk 0:00:04]}  bxc3 {[%clk 0:00:02]} 52. Bxg7+ {[%clk 0:00:04]}  Kxg7 {[%clk 0:00:03]} 53. Qe3 {[%clk 0:00:05]}  Qxg6 {[%clk 0:00:03]} 54. Qxc3+ {[%clk 0:00:05]}  Kh7 {[%clk 0:00:04]} 55. Qh3+ {[%clk 0:00:05]}  Kg7 {[%clk 0:00:04]} 56. Rac1 {[%clk 0:00:04]}  Re6 {[%clk 0:00:03]} 57. Qg3 {[%clk 0:00:03]}  Qxg3 {[%clk 0:00:03]} 58. hxg3 {[%clk 0:00:04]} 1-0


[Site "https://www.chess.com"]

[Event "Titled Tuesday Blitz April 25 Early 2023"]
[White "Aradhya, Garg"]
[Black "Le, Tuan Minh"]
[WhiteFideId "25006746"]
[BlackFideId "12401153"]
[WhiteElo "2263"]
[BlackElo "2566"]
[Result "0-1"]
[Round "11"]
[TimeControl "180+2"]
[Date "2023.04.25"]
[WhiteClock "0:00:15"]
[BlackClock "0:00:29"]

1. d4 {[%clk 0:03:00]}  d5 {[%clk 0:02:58]} 2. c4 {[%clk 0:03:01]}  c6 {[%clk 0:02:58]} 3. Nf3 {[%clk 0:03:00]}  Nf6 {[%clk 0:02:59]} 4. cxd5 {[%clk 0:03:00]}  cxd5 {[%clk 0:02:59]} 5. Nc3 {[%clk 0:03:01]}  Nc6 {[%clk 0:03:00]} 6. Bf4 {[%clk 0:03:01]}  a6 {[%clk 0:03:00]} 7. Ne5 {[%clk 0:03:01]}  Qb6 {[%clk 0:03:00]} 8. Nxc6 {[%clk 0:03:01]}  bxc6 {[%clk 0:03:01]} 9. Qd2 {[%clk 0:02:59]}  Bf5 {[%clk 0:02:58]} 10. e3 {[%clk 0:02:59]}  Ne4 {[%clk 0:02:56]} 11. Nxe4 {[%clk 0:02:57]}  Bxe4 {[%clk 0:02:57]} 12. a3 {[%clk 0:02:57]}  e6 {[%clk 0:02:54]} 13. Rc1 {[%clk 0:02:49]}  c5 {[%clk 0:02:54]} 14. h4 {[%clk 0:02:31]}  h6 {[%clk 0:02:48]} 15. f3 {[%clk 0:01:43]}  Bh7 {[%clk 0:02:47]} 16. Be2 {[%clk 0:01:43]}  c4 {[%clk 0:02:40]} 17. O-O {[%clk 0:01:42]}  Be7 {[%clk 0:02:40]} 18. h5 {[%clk 0:01:42]}  O-O {[%clk 0:02:41]} 19. e4 {[%clk 0:01:31]}  Rfd8 {[%clk 0:02:36]} 20. Rfe1 {[%clk 0:01:25]}  dxe4 {[%clk 0:02:28]} 21. Rxc4 {[%clk 0:01:24]}  Rac8 {[%clk 0:02:11]} 22. Rec1 {[%clk 0:01:21]}  Rxc4 {[%clk 0:02:07]} 23. Rxc4 {[%clk 0:01:22]}  Bd6 {[%clk 0:01:33]} 24. Be3 {[%clk 0:01:06]}  exf3 {[%clk 0:01:19]} 25. Bxf3 {[%clk 0:01:07]}  Qb5 {[%clk 0:01:19]} 26. Rc6 {[%clk 0:01:00]}  Be7 {[%clk 0:01:17]} 27. Qe2 {[%clk 0:01:00]}  Bd3 {[%clk 0:01:15]} 28. Qf2 {[%clk 0:01:00]}  Bf6 {[%clk 0:01:14]} 29. Rc5 {[%clk 0:00:56]}  Qd7 {[%clk 0:01:09]} 30. d5 {[%clk 0:00:54]}  e5 {[%clk 0:01:06]} 31. Be2 {[%clk 0:00:51]}  e4 {[%clk 0:01:06]} 32. Qf1 {[%clk 0:00:39]}  Qe7 {[%clk 0:00:36]} 33. Bxd3 {[%clk 0:00:35]}  Bg5 {[%clk 0:00:36]} 34. Bf2 {[%clk 0:00:31]}  e3 {[%clk 0:00:36]} 35. Rc2 {[%clk 0:00:18]}  exf2+ {[%clk 0:00:36]} 36. Kh1 {[%clk 0:00:18]}  Bh4 {[%clk 0:00:29]} 37. Re2 {[%clk 0:00:17]}  Qg5 {[%clk 0:00:28]} 38. Be4 {[%clk 0:00:16]}  Bg3 {[%clk 0:00:28]} 39. Rxf2 {[%clk 0:00:15]}  Qh4+ {[%clk 0:00:28]} 40. Kg1 {[%clk 0:00:15]}  Qh2# {[%clk 0:00:29]} 0-1


[Site "https://www.chess.com"]

[Event "Titled Tuesday Blitz April 25 Early 2023"]
[White "Shuvalova, Polina"]
[Black "Durarbayli, Vasif"]
[WhiteFideId "24171760"]
[BlackFideId "13402935"]
[WhiteElo "2281"]
[BlackElo "2551"]
[Result "0-1"]
[Round "11"]
[TimeControl "180+2"]
[Date "2023.04.25"]
[WhiteClock "0:00:01"]
[BlackClock "0:01:30"]

1. Nf3 {[%clk 0:03:00]}  d5 {[%clk 0:02:58]} 2. g3 {[%clk 0:03:00]}  c5 {[%clk 0:02:58]} 3. Bg2 {[%clk 0:03:00]}  f6 {[%clk 0:02:57]} 4. d4 {[%clk 0:02:56]}  cxd4 {[%clk 0:02:58]} 5. Nxd4 {[%clk 0:02:57]}  e5 {[%clk 0:02:58]} 6. Nb3 {[%clk 0:02:58]}  Be6 {[%clk 0:02:58]} 7. O-O {[%clk 0:02:57]}  Nc6 {[%clk 0:02:57]} 8. Nc3 {[%clk 0:02:56]}  d4 {[%clk 0:02:53]} 9. Ne4 {[%clk 0:02:56]}  Bd5 {[%clk 0:02:48]} 10. c3 {[%clk 0:02:50]}  f5 {[%clk 0:02:48]} 11. Ng5 {[%clk 0:02:34]}  Bxg2 {[%clk 0:02:47]} 12. Kxg2 {[%clk 0:02:34]}  Be7 {[%clk 0:02:39]} 13. h4 {[%clk 0:02:21]}  Bxg5 {[%clk 0:02:32]} 14. Bxg5 {[%clk 0:02:19]}  Qd5+ {[%clk 0:02:33]} 15. Kg1 {[%clk 0:02:12]}  h6 {[%clk 0:02:31]} 16. Bd2 {[%clk 0:02:07]}  Nf6 {[%clk 0:02:28]} 17. cxd4 {[%clk 0:02:05]}  exd4 {[%clk 0:02:28]} 18. Rc1 {[%clk 0:02:03]}  Ne4 {[%clk 0:02:28]} 19. h5 {[%clk 0:01:50]}  O-O {[%clk 0:02:27]} 20. Bf4 {[%clk 0:01:50]}  Rad8 {[%clk 0:02:23]} 21. Qd3 {[%clk 0:01:48]}  Qf7 {[%clk 0:02:18]} 22. Qf3 {[%clk 0:01:45]}  Rd5 {[%clk 0:02:15]} 23. Rfd1 {[%clk 0:01:43]}  Rfd8 {[%clk 0:02:15]} 24. Kg2 {[%clk 0:01:35]}  a5 {[%clk 0:02:13]} 25. a3 {[%clk 0:01:09]}  Nf6 {[%clk 0:02:08]} 26. Nc5 {[%clk 0:00:44]}  Nxh5 {[%clk 0:02:06]} 27. Nd3 {[%clk 0:00:40]}  Nf6 {[%clk 0:02:05]} 28. Rc5 {[%clk 0:00:38]}  Ne4 {[%clk 0:02:04]} 29. Rxd5 {[%clk 0:00:36]}  Qxd5 {[%clk 0:02:05]} 30. Rc1 {[%clk 0:00:33]}  g5 {[%clk 0:02:03]} 31. Bc7 {[%clk 0:00:33]}  Rd7 {[%clk 0:02:00]} 32. Bb6 {[%clk 0:00:33]}  g4 {[%clk 0:01:38]} 33. Qf4 {[%clk 0:00:33]}  Nc5+ {[%clk 0:01:38]} 34. Kh2 {[%clk 0:00:26]}  Nxd3 {[%clk 0:01:38]} 35. exd3 {[%clk 0:00:26]}  Ne5 {[%clk 0:01:39]} 36. Rc5 {[%clk 0:00:13]}  Nf3+ {[%clk 0:01:39]} 37. Kh1 {[%clk 0:00:13]}  Re7 {[%clk 0:01:36]} 38. Qb8+ {[%clk 0:00:02]}  Kh7 {[%clk 0:01:33]} 39. Rc1 {[%clk 0:00:01]}  Ne1+ {[%clk 0:01:30]} 0-1


[Site "https://www.chess.com"]

[Event "Titled Tuesday Blitz April 25 Early 2023"]
[White "Mekhitarian, Krikor Sevag"]
[Black "KRUMMEL2008"]
[WhiteFideId "2107660"]
[WhiteElo "2604"]
[BlackElo "2670"]
[Result "1-0"]
[Round "11"]
[TimeControl "180+2"]
[Date "2023.04.25"]
[WhiteClock "0:00:26"]
[BlackClock "0:00:04"]

1. Nf3 {[%clk 0:03:00]}  Nf6 {[%clk 0:02:59]} 2. c4 {[%clk 0:02:59]}  g6 {[%clk 0:03:00]} 3. Nc3 {[%clk 0:02:59]}  Bg7 {[%clk 0:03:00]} 4. e4 {[%clk 0:02:59]}  d6 {[%clk 0:03:01]} 5. d4 {[%clk 0:03:00]}  O-O {[%clk 0:03:01]} 6. h3 {[%clk 0:03:00]}  e5 {[%clk 0:02:58]} 7. d5 {[%clk 0:03:00]}  a5 {[%clk 0:02:34]} 8. Be3 {[%clk 0:02:59]}  Na6 {[%clk 0:02:31]} 9. g4 {[%clk 0:02:59]}  Nd7 {[%clk 0:02:25]} 10. a3 {[%clk 0:02:58]}  Nb6 {[%clk 0:02:21]} 11. Rg1 {[%clk 0:02:48]}  Bd7 {[%clk 0:02:20]} 12. Be2 {[%clk 0:02:28]}  Nc5 {[%clk 0:02:13]} 13. Nd2 {[%clk 0:02:24]}  Nba4 {[%clk 0:02:04]} 14. Nxa4 {[%clk 0:02:17]}  Nxa4 {[%clk 0:02:05]} 15. Qc2 {[%clk 0:02:14]}  Nc5 {[%clk 0:02:04]} 16. b3 {[%clk 0:02:12]}  Kh8 {[%clk 0:01:57]} 17. Rb1 {[%clk 0:01:50]}  f5 {[%clk 0:01:41]} 18. exf5 {[%clk 0:01:47]}  gxf5 {[%clk 0:01:42]} 19. b4 {[%clk 0:01:31]}  axb4 {[%clk 0:01:20]} 20. axb4 {[%clk 0:01:31]}  Na4 {[%clk 0:00:53]} 21. gxf5 {[%clk 0:01:26]}  Bxf5 {[%clk 0:00:51]} 22. Bd3 {[%clk 0:01:25]}  Qd7 {[%clk 0:00:49]} 23. Rg3 {[%clk 0:01:13]}  e4 {[%clk 0:00:19]} 24. Bxe4 {[%clk 0:01:00]}  Nc3 {[%clk 0:00:15]} 25. Bxf5 {[%clk 0:00:58]}  Rxf5 {[%clk 0:00:14]} 26. Rc1 {[%clk 0:00:55]}  Re8 {[%clk 0:00:10]} 27. Rxg7 {[%clk 0:00:40]}  Qxg7 {[%clk 0:00:10]} 28. Qxc3 {[%clk 0:00:40]}  Rfe5 {[%clk 0:00:11]} 29. Kd1 {[%clk 0:00:37]}  Kg8 {[%clk 0:00:06]} 30. Kc2 {[%clk 0:00:33]}  Qg6+ {[%clk 0:00:06]} 31. Kb2 {[%clk 0:00:33]}  Kf7 {[%clk 0:00:06]} 32. Nf3 {[%clk 0:00:30]}  Re4 {[%clk 0:00:02]} 33. Ng5+ {[%clk 0:00:28]}  Qxg5 {[%clk 0:00:01]} 34. Bxg5 {[%clk 0:00:28]}  Re2+ {[%clk 0:00:02]} 35. Rc2 {[%clk 0:00:28]}  Rxc2+ {[%clk 0:00:02]} 36. Kxc2 {[%clk 0:00:27]}  Re4 {[%clk 0:00:03]} 37. Qf3+ {[%clk 0:00:27]}  Ke8 {[%clk 0:00:03]} 38. Qxe4+ {[%clk 0:00:26]}  Kd7 {[%clk 0:00:04]} 39. Qe6# {[%clk 0:00:26]} 1-0


[Site "https://www.chess.com"]

[Event "Titled Tuesday Blitz April 25 Early 2023"]
[White "Bacallao Alonso, Yusnel"]
[Black "Kleiman, Jake"]
[WhiteFideId "3507416"]
[BlackFideId "2020041"]
[WhiteElo "2561"]
[BlackElo "2575"]
[Result "1-0"]
[Round "11"]
[TimeControl "180+2"]
[Date "2023.04.25"]
[WhiteClock "0:01:54"]
[BlackClock "0:00:54"]

1. d4 {[%clk 0:03:00]}  Nf6 {[%clk 0:02:58]} 2. Nf3 {[%clk 0:03:00]}  e6 {[%clk 0:02:58]} 3. c4 {[%clk 0:03:00]}  Bb4+ {[%clk 0:02:58]} 4. Nbd2 {[%clk 0:02:58]}  O-O {[%clk 0:02:57]} 5. g3 {[%clk 0:02:58]}  d5 {[%clk 0:02:57]} 6. Qc2 {[%clk 0:02:58]}  b6 {[%clk 0:02:57]} 7. Bg2 {[%clk 0:02:57]}  Bb7 {[%clk 0:02:57]} 8. O-O {[%clk 0:02:56]}  dxc4 {[%clk 0:02:58]} 9. Nxc4 {[%clk 0:02:55]}  Be4 {[%clk 0:02:56]} 10. Qb3 {[%clk 0:02:54]}  Nc6 {[%clk 0:02:51]} 11. Rd1 {[%clk 0:02:47]}  a5 {[%clk 0:02:43]} 12. Bg5 {[%clk 0:02:40]}  Bd5 {[%clk 0:02:33]} 13. Qc2 {[%clk 0:02:36]}  Bxf3 {[%clk 0:02:16]} 14. Bxf3 {[%clk 0:02:22]}  Nxd4 {[%clk 0:02:16]} 15. Qd3 {[%clk 0:01:57]}  Nxf3+ {[%clk 0:02:09]} 16. Qxf3 {[%clk 0:01:58]}  Qe7 {[%clk 0:02:00]} 17. Ne5 {[%clk 0:01:58]}  h6 {[%clk 0:00:54]} 18. Nc6 {[%clk 0:01:55]}  Qc5 {[%clk 0:00:54]} 19. Bxf6 {[%clk 0:01:55]}  gxf6 {[%clk 0:00:54]} 20. a3 {[%clk 0:01:54]} 1-0


[Site "https://www.chess.com"]

[Event "Titled Tuesday Blitz April 25 Early 2023"]
[White "Rustemov, Alexander"]
[Black "WindWhistler11"]
[WhiteFideId "4119002"]
[WhiteElo "2782"]
[BlackElo "2543"]
[Result "1-0"]
[Round "11"]
[TimeControl "180+2"]
[Date "2023.04.25"]
[WhiteClock "0:01:24"]
[BlackClock "0:00:33"]

1. d4 {[%clk 0:03:00]}  Nf6 {[%clk 0:02:55]} 2. c4 {[%clk 0:03:01]}  e6 {[%clk 0:02:54]} 3. Nf3 {[%clk 0:03:01]}  c5 {[%clk 0:02:51]} 4. d5 {[%clk 0:03:00]}  exd5 {[%clk 0:02:51]} 5. cxd5 {[%clk 0:03:01]}  Bd6 {[%clk 0:02:51]} 6. Nc3 {[%clk 0:03:00]}  O-O {[%clk 0:02:51]} 7. e4 {[%clk 0:03:00]}  Re8 {[%clk 0:02:48]} 8. Bg5 {[%clk 0:02:53]}  h6 {[%clk 0:02:48]} 9. Bxf6 {[%clk 0:02:42]}  Qxf6 {[%clk 0:02:47]} 10. Bd3 {[%clk 0:02:39]}  a6 {[%clk 0:02:40]} 11. a4 {[%clk 0:02:35]}  Be5 {[%clk 0:02:30]} 12. Nxe5 {[%clk 0:02:32]}  Qxe5 {[%clk 0:02:31]} 13. O-O {[%clk 0:02:31]}  d6 {[%clk 0:02:30]} 14. a5 {[%clk 0:02:15]}  Nd7 {[%clk 0:02:24]} 15. Na4 {[%clk 0:02:12]}  Qd4 {[%clk 0:02:20]} 16. Bc2 {[%clk 0:02:06]}  Qb4 {[%clk 0:02:13]} 17. Qe1 {[%clk 0:02:02]}  Qb5 {[%clk 0:01:46]} 18. Qc3 {[%clk 0:01:58]}  Nf6 {[%clk 0:01:40]} 19. Nb6 {[%clk 0:01:56]}  Rb8 {[%clk 0:01:39]} 20. Ba4 {[%clk 0:01:54]}  Qe2 {[%clk 0:01:16]} 21. Rae1 {[%clk 0:01:46]}  Qh5 {[%clk 0:01:12]} 22. Bxe8 {[%clk 0:01:45]}  Nxe8 {[%clk 0:01:13]} 23. Qg3 {[%clk 0:01:33]}  Qg4 {[%clk 0:00:59]} 24. Qxg4 {[%clk 0:01:30]}  Bxg4 {[%clk 0:01:00]} 25. f3 {[%clk 0:01:30]}  Bh5 {[%clk 0:00:59]} 26. g4 {[%clk 0:01:25]}  Bg6 {[%clk 0:00:59]} 27. b4 {[%clk 0:01:25]}  cxb4 {[%clk 0:00:46]} 28. Rc1 {[%clk 0:01:26]}  Nf6 {[%clk 0:00:38]} 29. Rc8+ {[%clk 0:01:25]}  Rxc8 {[%clk 0:00:37]} 30. Nxc8 {[%clk 0:01:26]}  Ne8 {[%clk 0:00:33]} 31. Rb1 {[%clk 0:01:24]}  h5 {[%clk 0:00:33]} 32. h3 {[%clk 0:01:24]}  hxg4 {[%clk 0:00:33]} 33. hxg4 {[%clk 0:01:24]} 1-0


[Site "https://www.chess.com"]

[Event "Titled Tuesday Blitz April 25 Early 2023"]
[White "Kollars, Dmitrij"]
[Black "Samunenkov, Ihor"]
[WhiteFideId "12909572"]
[BlackFideId "14187086"]
[WhiteElo "2584"]
[BlackElo "2457"]
[Result "1-0"]
[Round "11"]
[TimeControl "180+2"]
[Date "2023.04.25"]
[WhiteClock "0:00:13"]
[BlackClock "0:00:04"]

1. d4 {[%clk 0:03:00]}  d5 {[%clk 0:02:57]} 2. c4 {[%clk 0:02:59]}  e6 {[%clk 0:02:57]} 3. Nf3 {[%clk 0:03:00]}  Nf6 {[%clk 0:02:56]} 4. g3 {[%clk 0:02:59]}  Be7 {[%clk 0:02:57]} 5. Bg2 {[%clk 0:03:00]}  O-O {[%clk 0:02:57]} 6. Nc3 {[%clk 0:03:00]}  c6 {[%clk 0:02:57]} 7. Nd2 {[%clk 0:02:56]}  a5 {[%clk 0:02:47]} 8. e4 {[%clk 0:02:52]}  dxc4 {[%clk 0:02:47]} 9. e5 {[%clk 0:02:48]}  Nd5 {[%clk 0:02:42]} 10. Nxc4 {[%clk 0:02:47]}  c5 {[%clk 0:02:19]} 11. Nxd5 {[%clk 0:02:22]}  exd5 {[%clk 0:02:19]} 12. Ne3 {[%clk 0:02:23]}  Nc6 {[%clk 0:02:05]} 13. Nxd5 {[%clk 0:02:22]}  cxd4 {[%clk 0:02:05]} 14. O-O {[%clk 0:02:20]}  Bc5 {[%clk 0:02:04]} 15. Qh5 {[%clk 0:02:12]}  Re8 {[%clk 0:01:40]} 16. Be4 {[%clk 0:01:08]}  g6 {[%clk 0:01:08]} 17. Qf3 {[%clk 0:01:07]}  Rxe5 {[%clk 0:00:55]} 18. Bf4 {[%clk 0:01:06]}  Bg4 {[%clk 0:00:50]} 19. Qg2 {[%clk 0:00:38]}  Bh3 {[%clk 0:00:45]} 20. Qf3 {[%clk 0:00:13]}  Bxf1 {[%clk 0:00:42]} 21. Rxf1 {[%clk 0:00:14]}  f5 {[%clk 0:00:15]} 22. Bxe5 {[%clk 0:00:13]}  Nxe5 {[%clk 0:00:16]} 23. Qf4 {[%clk 0:00:13]}  Qd6 {[%clk 0:00:14]} 24. Bg2 {[%clk 0:00:13]}  Nc6 {[%clk 0:00:10]} 25. Qf3 {[%clk 0:00:12]}  Re8 {[%clk 0:00:09]} 26. Qb3 {[%clk 0:00:12]}  Kg7 {[%clk 0:00:05]} 27. Qxb7+ {[%clk 0:00:12]}  Kh8 {[%clk 0:00:05]} 28. Nc7 {[%clk 0:00:10]}  Re7 {[%clk 0:00:01]} 29. Qa8+ {[%clk 0:00:10]}  Nd8 {[%clk 0:00:02]} 30. Nd5 {[%clk 0:00:09]}  Re8 {[%clk 0:00:02]} 31. Qxa5 {[%clk 0:00:09]}  Kg7 {[%clk 0:00:01]} 32. Qd2 {[%clk 0:00:10]}  Qe5 {[%clk 0:00:01]} 33. Nf4 {[%clk 0:00:10]}  Kh8 {[%clk 0:00:01]} 34. Nd3 {[%clk 0:00:10]}  Qd6 {[%clk 0:00:02]} 35. b4 {[%clk 0:00:10]}  Ba7 {[%clk 0:00:02]} 36. a4 {[%clk 0:00:11]}  Nf7 {[%clk 0:00:02]} 37. a5 {[%clk 0:00:11]}  Ne5 {[%clk 0:00:02]} 38. b5 {[%clk 0:00:11]}  Nc4 {[%clk 0:00:02]} 39. Qa2 {[%clk 0:00:11]}  Ne5 {[%clk 0:00:01]} 40. Nxe5 {[%clk 0:00:11]}  Qxe5 {[%clk 0:00:02]} 41. b6 {[%clk 0:00:12]}  Bb8 {[%clk 0:00:03]} 42. a6 {[%clk 0:00:12]}  d3 {[%clk 0:00:03]} 43. a7 {[%clk 0:00:13]}  Bxa7 {[%clk 0:00:04]} 44. bxa7 {[%clk 0:00:13]} 1-0


[Site "https://www.chess.com"]

[Event "Titled Tuesday Blitz April 25 Early 2023"]
[White "Grigoriants, Sergey"]
[Black "Wieczorek, Oskar"]
[WhiteFideId "4130804"]
[BlackFideId "1133950"]
[WhiteElo "2502"]
[BlackElo "2418"]
[Result "1-0"]
[Round "11"]
[TimeControl "180+2"]
[Date "2023.04.25"]
[WhiteClock "0:00:37"]
[BlackClock "0:00:06"]

1. d4 {[%clk 0:03:00]}  Nf6 {[%clk 0:03:00]} 2. c4 {[%clk 0:03:00]}  c5 {[%clk 0:03:00]} 3. d5 {[%clk 0:03:00]}  g6 {[%clk 0:03:01]} 4. Nc3 {[%clk 0:02:59]}  Bg7 {[%clk 0:03:01]} 5. e4 {[%clk 0:02:59]}  d6 {[%clk 0:03:02]} 6. h3 {[%clk 0:02:55]}  O-O {[%clk 0:03:02]} 7. Nf3 {[%clk 0:02:55]}  e6 {[%clk 0:03:02]} 8. Be2 {[%clk 0:02:45]}  exd5 {[%clk 0:02:45]} 9. exd5 {[%clk 0:02:45]}  Nfd7 {[%clk 0:02:42]} 10. O-O {[%clk 0:02:45]}  f5 {[%clk 0:02:42]} 11. Ng5 {[%clk 0:02:41]}  Nf6 {[%clk 0:02:40]} 12. Bf3 {[%clk 0:02:38]}  Re8 {[%clk 0:02:35]} 13. Bf4 {[%clk 0:02:34]}  Na6 {[%clk 0:02:21]} 14. Re1 {[%clk 0:02:22]}  Nc7 {[%clk 0:02:17]} 15. Rxe8+ {[%clk 0:02:10]}  Nfxe8 {[%clk 0:02:18]} 16. Qb3 {[%clk 0:01:55]}  h6 {[%clk 0:02:06]} 17. Ne6 {[%clk 0:01:48]}  Nxe6 {[%clk 0:02:06]} 18. dxe6 {[%clk 0:01:49]}  Bxe6 {[%clk 0:02:07]} 19. Re1 {[%clk 0:01:46]}  Bf7 {[%clk 0:02:01]} 20. Qxb7 {[%clk 0:01:25]}  Rb8 {[%clk 0:02:01]} 21. Qxa7 {[%clk 0:01:26]}  Rxb2 {[%clk 0:02:01]} 22. Bd5 {[%clk 0:01:22]}  Bxd5 {[%clk 0:01:42]} 23. Nxd5 {[%clk 0:01:21]}  Nf6 {[%clk 0:01:41]} 24. Re7 {[%clk 0:01:07]}  Nh5 {[%clk 0:01:08]} 25. g4 {[%clk 0:00:59]}  fxg4 {[%clk 0:00:59]} 26. hxg4 {[%clk 0:00:58]}  Rb1+ {[%clk 0:00:19]} 27. Kh2 {[%clk 0:00:57]}  Bf8 {[%clk 0:00:08]} 28. gxh5 {[%clk 0:00:53]}  Bxe7 {[%clk 0:00:09]} 29. Nxe7+ {[%clk 0:00:50]}  Kf7 {[%clk 0:00:09]} 30. Nxg6+ {[%clk 0:00:48]}  Ke6 {[%clk 0:00:09]} 31. Bg3 {[%clk 0:00:37]}  Qg5 {[%clk 0:00:08]} 32. Nf4+ {[%clk 0:00:37]}  Kf5 {[%clk 0:00:08]} 33. Qh7+ {[%clk 0:00:37]}  Kg4 {[%clk 0:00:08]} 34. Qxb1 {[%clk 0:00:37]}  Kf3 {[%clk 0:00:06]} 1-0


[Site "https://www.chess.com"]